fUSD/lending_fUSD_20240717
["ID","MTS","AMOUNT","RATE_DAILY","PERIOD"]
[332479799,1721231440510,-147724.25974048,0.00014,2]
[332479800,1721231440550,-2748.43297832,0.00014,2]
[332479801,1721231441445,-6488.3,0.00014,2]
[332479802,1721231441457,-1166.94316662,0.00014,2]
[332479803,1721231441468,-436.0661831,0.00014,2]
[332479979,1721231443422,-662.74,0.000139,2]
[332480042,1721231444100,-409.3932852,0.000139,2]
[332480043,1721231444112,-1714.29767903,0.00014,2]
[332480044,1721231444125,-1058.55765,0.00014,2]
[332480045,1721231444139,-795.61370028,0.00014,2]
[332480046,1721231444152,-73675.22943107,0.00014,2]
[332480067,1721231445220,-55078.27398297,0.00014,2]
[332480068,1721231445235,-28240.08299187,0.00014,2]
[332480069,1721231445613,-884143.03324297,0.00014,2]
[332480070,1721231445625,-500.0,0.00014,2]
[332480071,1721231445636,-1077728.2259186,0.00014,2]
[332480072,1721231445647,-1243.700005,0.00014,2]
[332480073,1721231445658,-1547.92791839,0.00014,2]
[332480074,1721231445669,-5236.26623947,0.00014,2]
[332480075,1721231445680,-364.46422085,0.00014,2]
[332480076,1721231445691,-305.3305634,0.00014,2]
[332480077,1721231445702,-37338.36378899,0.00014,2]
[332480083,1721231446343,-1313.84597033,0.00014,2]
[332480084,1721231446355,-1900.41,0.00014,2]
[332480085,1721231446398,-470549.87770495,0.00014,2]
[332480086,1721231446410,-57968.8028462,0.00014,2]
[332480087,1721231446421,-665.09965594,0.00014,2]
[332480088,1721231446454,-4685.50118403,0.00014,2]
[332480089,1721231446465,-645.30237758,0.00014,2]
[332480090,1721231446476,-12136.4417712,0.00014,2]
[332480091,1721231446509,-453.0,0.00014,2]
[332480092,1721231446521,-5177.5175671,0.00014,2]
[332480093,1721231446532,-9134.48781525,0.00014,2]
[332480094,1721231446543,-649.38,0.00014,2]
[332480095,1721231446555,-2924.66815476,0.00014,2]
[332480096,1721231446566,-8669.84035761,0.00014,2]
[332480097,1721231446578,-6337.56243417,0.00014,2]
[332480098,1721231446589,-24874.0236869,0.00014,2]
[332480099,1721231446600,-312.08485,0.00014,2]
[332480100,1721231446610,-326.065,0.00014,2]
[332480101,1721231446622,-470.22347517,0.00014,2]
[332480102,1721231446671,-959.66047797,0.00014,2]
[332480103,1721231446682,-9179.35242488,0.00014,2]
[332480104,1721231446693,-518.90570714,0.00014,2]
[332480105,1721231446704,-2073.10429738,0.00014,2]
[332480106,1721231446732,-2152.65565936,0.00014,2]
[332480110,1721231504701,1000.0,0.0001078,2]
[332480195,1721231678414,500.0,0.0001078,2]
[332480199,1721231871608,533.98,0.00010691,2]
[332480224,1721232382538,-300.0,0.00011178,2]
[332480225,1721232382560,-533.36085656,0.00011178,2]
[332480226,1721232382580,-1265.84016916,0.00011178,2]
[332480227,1721232382602,-356.60665527,0.00011178,2]
[332480228,1721232382624,-4467.02483465,0.00011179,2]
[332480229,1721232382645,-545.49350331,0.00011179,2]
[332480230,1721232382666,-155.0,0.00011181,2]
[332480231,1721232382688,-18876.67398105,0.00011198,2]
[332480232,1721232391324,-1295.80841219,0.00011178,2]
[332480233,1721232391345,-9188.32928806,0.00011198,2]
[332480234,1721232391366,-1000.0,0.00011602,2]
[332480249,1721232520484,158.71970607,0.00011602,2]
[332480250,1721232535596,155.68527616,0.00011602,2]
[332480251,1721232536085,199.91889867,0.00011602,2]
[332480252,1721232542134,1115.44347773,0.00011602,2]
[332480253,1721232546718,255.40525301,0.00011198,2]
[332480258,1721232571038,1072.38944442,0.00011198,2]
[332480259,1721232593032,543.69,0.00010668,2]
[332480260,1721232624297,200.0,0.00011981,2]
[332480270,1721232632415,-175.13633516,0.00012385,2]
[332480271,1721232632425,-163.46984203,0.00012385,2]
[332480272,1721232632434,-204.06,0.00012386,2]
[332480273,1721232632444,-659.35593435,0.00012386,2]
[332480274,1721232632469,-340.64406565,0.00012386,2]
[332480275,1721232632479,-169.87426834,0.00012423,2]
[332480276,1721232632488,-300.0,0.00012423,2]
[332480277,1721232632498,-500.0,0.00012424,2]
[332480278,1721232632509,-700.0,0.00012424,2]
[332480279,1721232632518,-500.0,0.00012424,2]
[332480280,1721232632528,-800.0,0.00012424,2]
[332480281,1721232632537,-208.31669417,0.00012454,2]
[332480282,1721232632547,-250.0,0.00012455,2]
[332480283,1721232632556,-346.93460697,0.00012503,2]
[332480284,1721232632565,-250.0,0.00012504,2]
[332480285,1721232632575,-1281.89876097,0.00012539,2]
[332480286,1721232632584,-409.12171754,0.00012539,2]
[332480287,1721232632594,-23900.0,0.0001254,2]
[332480288,1721232632603,-155.30328466,0.00012573,2]
[332480289,1721232632613,-177.5,0.00012574,2]
[332480290,1721232632622,-543.69,0.00012932,2]
[332480291,1721232632632,-196.65850358,0.00012954,2]
[332480292,1721232632646,-157.27225688,0.00012954,2]
[332480293,1721232632655,-150.0,0.00012954,2]
[332480294,1721232632664,-346.8198691,0.00012955,2]
[332480295,1721232632674,-346.8198691,0.00012955,2]
[332480296,1721232632683,-3153.87,0.00012955,2]
[332480297,1721232632693,-177.51,0.00013134,2]
[332480298,1721232632702,-158.49361108,0.00013245,2]
[332480299,1721232632712,-246.21354619,0.00013245,2]
[332480300,1721232632721,-700.0,0.00013246,2]
[332480301,1721232632731,-800.0,0.00013246,2]
[332480302,1721232632740,-527.80162773,0.00013357,2]
[332480303,1721232632751,-155.0,0.00013357,2]
[332480304,1721232632760,-155.43,0.00013358,2]
[332480305,1721232632770,-155.29000583,0.00013533,2]
[332480306,1721232632780,-201.25931259,0.00013533,2]
[332480308,1721232632790,-271.79063422,0.00013534,2]
[332480310,1721232632799,-691.88678279,0.00013534,2]
[332480311,1721232632808,-208.93331,0.00013535,2]
[332480313,1721232632817,-155.0,0.00013573,2]
[332480315,1721232632826,-420.0,0.00013632,2]
[332480317,1721232632836,-1273.89,0.00013699,2]
[332480319,1721232632845,-250.0,0.00013699,2]
[332480321,1721232632854,-264.02,0.00013699,2]
[332480323,1721232632863,-915.84784,0.0001386,2]
[332480324,1721232632872,-400.0,0.00013899,2]
[332480325,1721232632882,-156.37149659,0.00013899,2]
[332480327,1721232632896,-437.04440042,0.00013899,2]
[332480329,1721232632905,-155.17695467,0.00013899,2]
[332480331,1721232632915,-160.3894,0.000139,2]
[332480333,1721232632925,-3762.123,0.000139,2]
[332480335,1721232632935,-331.6237,0.000139,2]
[332480337,1721232632945,-1437.76059583,0.000139,2]
[332480339,1721232632955,-204.06,0.00013935,2]
[332480341,1721232632964,-1000.0,0.00013935,2]
[332480343,1721232632974,-212061.3024169,0.00014,2]
[332480383,1721232637580,-177.0369387,0.00013967,2]
[332480384,1721232637590,-3219.21807488,0.00014,2]
[332480385,1721232637691,-793.83791,0.00014,2]
[332480386,1721232637802,-1423.16486127,0.00014,2]
[332480387,1721232637815,-276.32544633,0.00014,2]
[332480388,1721232637825,-200.0,0.00014,2]
[332480389,1721232637835,-2000.0,0.00014,2]
[332480390,1721232637844,-200.0,0.00014,2]
[332480391,1721232637854,-3061.34453286,0.00014053,2]
[332480392,1721232637865,-4328.72659924,0.00014053,2]
[332480393,1721232637876,-500.0,0.00014068,2]
[332480394,1721232637886,-700.0,0.00014068,2]
[332480395,1721232637900,-500.0,0.00014068,2]
[332480396,1721232637910,-594.28301666,0.00014068,2]
[332480397,1721232637922,-205.71698334,0.00014068,2]
[332480398,1721232637931,-136.78301666,0.0001414,2]
[332480399,1721232637943,-63.21698334,0.0001414,2]
[332480400,1721232637953,-4672.37154305,0.000143,2]
[332480401,1721232637964,-999.99130854,0.000143,2]
[332480404,1721232637976,-835.77,0.000143,2]
[332480406,1721232637987,-28865.86714841,0.000143,2]
[332480408,1721232637997,-1273.89,0.00014384,2]
[332480410,1721232638007,-12058.38227396,0.000145,2]
[332480412,1721232638016,-11491.0,0.000145,3]
[332480414,1721232638026,-2483.01529341,0.0001469,2]
[332480416,1721232638035,-11491.0,0.000147,5]
[332480417,1721232638045,-938.11662455,0.0001479,2]
[332480419,1721232638055,-2483.01529341,0.0001488,2]
[332480421,1721232638065,-4966.03058682,0.0001489,2]
[332480423,1721232638074,-700.0,0.0001489,2]
[332480425,1721232638084,-800.0,0.0001489,2]
[332480427,1721232638094,-966.86633851,0.00014899,2]
[332480429,1721232638103,-587.0,0.00014958,2]
[332480431,1721232638113,-158.09627228,0.00014999,2]
[332480433,1721232638123,-155.0,0.00014999,2]
[332480435,1721232638133,-600.0,0.00015,2]
[332480437,1721232638146,-3972.74443133,0.00015,2]
[332480439,1721232638160,-2483.01529341,0.00015058,2]
[332480441,1721232638171,-1273.89,0.00015068,2]
[332480443,1721232638181,-4966.03058682,0.0001509,2]
[332480445,1721232638191,-1719.0,0.000151,2]
[332480447,1721232638201,-1353.12,0.0001511,2]
[332480449,1721232638211,-2483.01529341,0.00015111,2]
[332480480,1721232638501,-353.62676048,0.00015121,2]
[332480482,1721232638523,-1437.76059583,0.00015122,2]
[332480485,1721232638533,-227.97173333,0.00015166,2]
[332480486,1721232638542,-543.69,0.00015196,2]
[332480488,1721232638551,-400.0,0.0001537,2]
[332480490,1721232638561,-155.0,0.00015482,2]
[332480492,1721232638570,-204.06,0.00015483,2]
[332480494,1721232638580,-1000.0,0.00015483,2]
[332480496,1721232638589,-155.43,0.00015585,2]
[332480498,1721232638598,-2483.01529341,0.00015702,2]
[332480500,1721232638608,-500.0,0.00015712,2]
[332480502,1721232638618,-79.35533365,0.00015712,2]
[332480504,1721232638630,-620.64466635,0.00015712,2]
[332480506,1721232638639,-500.0,0.00015712,2]
[332480508,1721232638651,-800.0,0.00015712,2]
[332480510,1721232638660,-1273.89,0.00015753,2]
[332480512,1721232638669,-159.10720414,0.00015974,2]
[332480514,1721232638679,-152.72,0.00015975,2]
[332480516,1721232638688,-539.71566269,0.00016,2]
[332480517,1721232638697,-2483.01529341,0.00016222,2]
[332480520,1721232638707,-938.11662449,0.00016232,2]
[332480522,1721232638717,-1437.76059583,0.00016344,2]
[332480524,1721232638727,-915.84785,0.0001636,2]
[332480525,1721232638737,-304.67,0.00016362,2]
[332480527,1721232638747,-1061.69,0.00016362,2]
[332480529,1721232638757,-668.0,0.00016414,2]
[332480531,1721232638766,-508.62211386,0.00016438,2]
[332480534,1721232638778,-605.61078592,0.00016438,2]
[332480536,1721232638791,-159.65710022,0.00016438,2]
[332480537,1721232638800,-700.0,0.00016534,2]
[332480538,1721232638810,-800.0,0.00016534,2]
[332480539,1721232638820,-55.7315397,0.00016773,2]
[332480551,1721232642485,-255.89656553,0.00015121,2]
[332480562,1721232642592,-702.26829574,0.00015121,2]
[332480563,1721232642602,-5766.2684603,0.00016773,2]
[332480564,1721232642612,-38315.0,0.00016773,2]
[332480565,1721232642621,-1667.0,0.00016773,2]
[332480567,1721232642631,-1201.0,0.00016773,2]
[332480569,1721232642642,-5116.0,0.00016773,2]
[332480572,1721232642654,-1072.0,0.00016773,2]
[332480574,1721232642663,-2483.01529341,0.00016798,2]
[332480575,1721232642673,-1056.67958842,0.00016808,2]
[332480576,1721232642683,-4966.03058682,0.00016877,2]
[332480577,1721232642692,-6657.44063354,0.00016887,2]
[332480579,1721232642702,-3239.11517669,0.00016887,2]
[332480580,1721232642711,-307.90865835,0.000169,2]
[332480581,1721232642721,-2498.02656989,0.00017,2]
[332480582,1721232642731,-650.0,0.00017,2]
[332480583,1721232642741,-2483.01529341,0.00017021,2]
[332480584,1721232642750,-204.06,0.00017031,2]
[332480585,1721232642760,-1000.0,0.00017031,2]
[332480587,1721232642770,-700.0,0.00017082,2]
[332480589,1721232642779,-600.0,0.00017147,2]
[332480590,1721232642789,-849.66,0.00017184,2]
[332480591,1721232642799,-500.0,0.00017356,2]
[332480592,1721232642808,-500.0,0.00017356,2]
[332480593,1721232642819,-2483.01529341,0.00017417,2]
[332480594,1721232642828,-543.69,0.0001746,2]
[332480595,1721232642838,-34762.2141077,0.00017503,2]
[332480596,1721232642847,-150.197,0.00017513,2]
[332480597,1721232642857,-156.085,0.00017513,2]
[332480598,1721232642867,-150.302,0.00017513,2]
[332480599,1721232642876,-259.795,0.00017513,2]
[332480600,1721232642886,-185.875,0.00017513,2]
[332480601,1721232642898,-261.248,0.00017513,2]
[332480602,1721232642907,-150.235,0.00017513,2]
[332480603,1721232642917,-1252.0,0.00017513,2]
[332480604,1721232642926,-1829.0,0.00017513,2]
[332480605,1721232642935,-361.0,0.00017513,2]
[332480606,1721232642945,-1661.0,0.00017513,2]
[332480607,1721232642955,-620.0,0.00017513,2]
[332480608,1721232642965,-809.0,0.00017513,2]
[332480610,1721232642974,-450.0,0.00017513,2]
[332480611,1721232642983,-445.0,0.00017513,2]
[332480614,1721232642993,-2307.606,0.00017513,2]
[332480615,1721232643002,-549.0,0.00017513,2]
[332480617,1721232643012,-150.0,0.00017513,2]
[332480619,1721232643021,-3280.0,0.00017513,2]
[332480622,1721232643031,-1992.0,0.00017513,2]
[332480624,1721232643041,-1437.76059583,0.00017567,2]
[332480626,1721232643051,-800.0,0.0001763,2]
[332480628,1721232643060,-938.11662449,0.00017674,2]
[332480630,1721232643071,-2483.01529341,0.00017693,2]
[332480632,1721232643081,-182.25416917,0.000177,2]
[332480634,1721232643090,-652.29655545,0.00017703,2]
[332480636,1721232643100,-7449.04588023,0.00017718,2]
[332480638,1721232643109,-11095.69,0.00017728,2]
[332480640,1721232643121,-8121.16,0.00017728,2]
[332480641,1721232643131,-1014.0,0.000178,2]
[332480643,1721232643142,-369.54465039,0.000178,2]
[332480645,1721232643155,-304.90444768,0.000178,2]
[332480647,1721232643164,-304.90444768,0.000178,2]
[332480649,1721232643175,-2483.01529341,0.00017801,2]
[332480651,1721232643184,-524.03925994,0.00017807,2]
[332480653,1721232643194,-155.43,0.00017811,2]
[332480655,1721232643204,-155.0,0.00017925,2]
[332480657,1721232643213,-152.72,0.00017972,2]
[332480660,1721232643226,-700.0,0.00018178,2]
[332480663,1721232643236,-152.38095238,0.00018376,2]
[332480665,1721232643246,-302.46975047,0.00018452,2]
[332480668,1721232643256,-500.0,0.00018452,2]
[332480671,1721232643267,-151.33774528,0.00018477,2]
[332480674,1721232643277,-157.3378517,0.00018483,2]
[332480676,1721232643286,-152.64471479,0.00018485,2]
[332480678,1721232643296,-2483.01529341,0.0001849,2]
[332480680,1721232643305,-1000.0,0.000185,2]
[332480682,1721232643315,-170.57408453,0.000185,2]
[332480684,1721232643325,-607.3076052,0.0001851,2]
[332480686,1721232643334,-2935.35749502,0.00018526,2]
[332480688,1721232643344,-594.65968298,0.00018526,2]
[332480690,1721232643354,-2483.01529341,0.00018569,2]
[332480692,1721232643364,-204.06,0.00018579,2]
[332480694,1721232643374,-1000.0,0.00018579,2]
[332480696,1721232643384,-2483.01529341,0.00018589,2]
[332480699,1721232643393,-150.5,0.0001859,30]
[332480701,1721232643406,-2483.01529341,0.0001859,2]
[332480703,1721232643415,-54920.3836918,0.0001859,2]
[332480761,1721232644130,-5874.51520628,0.0001859,2]
[332480763,1721232644143,-1424.4705241,0.0001859,2]
[332480766,1721232644161,-1582.8093,0.0001859,2]
[332480768,1721232644172,-386.69634014,0.0001859,2]
[332480808,1721232644555,-1619.4125407,0.0001859,2]
[332480811,1721232644571,-9468.60000001,0.0001859,2]
[332480813,1721232644583,-689.42794395,0.0001859,2]
[332480928,1721232645605,-550.18428788,0.00016507,2]
[332480934,1721232645659,-2680.70132911,0.00016507,2]
[332480936,1721232645669,-386.48143361,0.0001859,2]
[332480942,1721232645714,-1941.56,0.0001859,2]
[332480952,1721232645822,-1127.0972719,0.0001859,2]
[332480959,1721232645877,-765.67486631,0.0001859,2]
[332480961,1721232645888,-324.95834368,0.0001859,2]
[332480963,1721232645900,-93017.10931213,0.0001859,2]
[332480966,1721232645911,-25517.10949339,0.0001859,2]
[332480968,1721232645921,-598.86865622,0.00018599,2]
[332480970,1721232645931,-500.0,0.00018599,2]
[332480972,1721232645941,-211.46343877,0.00018599,2]
[332480974,1721232645950,-500.0,0.00018599,2]
[332480976,1721232645960,-500.0,0.00018599,2]
[332480978,1721232645970,-250.0,0.00018599,2]
[332480980,1721232645979,-500.0,0.00018599,2]
[332480982,1721232645989,-500.0,0.00018599,2]
[332480983,1721232645998,-172.55366038,0.00018599,2]
[332480986,1721232646009,-590.31,0.00018599,2]
[332480988,1721232646018,-744.0,0.000186,2]
[332480989,1721232646027,-187656.02338487,0.000186,2]
[332481282,1721232678026,253.941,0.00011098,2]
[332481283,1721232699953,515.63745664,0.00011198,2]
[332481284,1721232713488,5607.32059616,0.00011198,2]
[332481291,1721232770014,18437.71119089,0.00011981,2]
[332481312,1721233538479,10876.78488563,0.00011,2]
[332481317,1721233747971,-242.77519857,0.00011177,2]
[332481318,1721233747992,-290.05974808,0.00011191,2]
[332481319,1721233748016,-1692.00557591,0.00011198,2]
[332481320,1721233748036,-5392.40963011,0.00011198,2]
[332481321,1721233748057,-4467.02483465,0.00011798,2]
[332481322,1721233748078,-5699.29289489,0.00011799,2]
[332481323,1721233748099,-271.41966975,0.000118,2]
[332481324,1721233812487,1500.0,0.0001198,2]
[332481333,1721233832309,-608.39,0.00012064,2]
[332481334,1721233832319,-1136.70475368,0.00012509,2]
[332481335,1721233832333,-229.72774632,0.0001251,2]
[332481336,1721233832363,-359.11919393,0.0001251,2]
[332481337,1721233832375,-452.07379537,0.0001259,2]
[332481338,1721233832385,-550.0,0.00013,2]
[332481339,1721233832394,-307.90865833,0.00013233,2]
[332481340,1721233832404,-150.0,0.00013332,2]
[332481341,1721233832413,-28065.00326911,0.00013332,2]
[332481342,1721233832422,-5703.15688886,0.00013333,2]
[332481343,1721233832433,-4259.61070056,0.00013333,2]
[332481344,1721233832445,-609.67999998,0.00013333,2]
[332481345,1721233832456,-538.49967497,0.00013333,2]
[332481346,1721233832467,-7871.96110263,0.00013333,2]
[332481347,1721233832479,-2613.10872722,0.00013333,2]
[332481348,1721233832490,-1154.86373683,0.00013333,2]
[332481349,1721233832509,-9871.13066748,0.00013333,2]
[332481350,1721233832522,-792.5901174,0.00013333,2]
[332481351,1721233832534,-523.015,0.00013333,2]
[332481352,1721233832547,-463.05,0.00013333,2]
[332481353,1721233832561,-3636.7873841,0.00013333,2]
[332481354,1721233832576,-450.0,0.00013333,2]
[332481355,1721233832588,-825.99999941,0.00013333,2]
[332481356,1721233832601,-1618.07633989,0.00013333,2]
[332481357,1721233832612,-2025.48828389,0.00013333,2]
[332481358,1721233832624,-3185.94146673,0.00013333,2]
[332481359,1721233832636,-291.826501,0.00013333,2]
[332481360,1721233832647,-703.37788318,0.00013333,2]
[332481361,1721233832659,-630.10225962,0.00013333,2]
[332481362,1721233832670,-472.53583505,0.00013333,2]
[332481371,1721233837714,-2192.4951309,0.00013333,2]
[332481372,1721233837731,-37387.3179142,0.00013333,2]
[332481373,1721233837748,-994.53623725,0.00013333,2]
[332481374,1721233837780,-14945.15644671,0.00013333,2]
[332481375,1721233837796,-2063.9565768,0.00013333,2]
[332481376,1721233837815,-11712.5162534,0.00013333,2]
[332481377,1721233837834,-3340.59680603,0.00013333,2]
[332481378,1721233837849,-1074.03084988,0.00013333,2]
[332481379,1721233837865,-1286.51473513,0.00013333,2]
[332481380,1721233837886,-381.33465368,0.00013333,2]
[332481381,1721233837918,-42552.508034,0.00013333,2]
[332481382,1721233837981,-37673.71165434,0.00013333,2]
[332481383,1721233837994,-25302.1915841,0.00013333,2]
[332481384,1721233838005,-13565.0,0.00013333,2]
[332481385,1721233838017,-24283.76035,0.00013333,2]
[332481420,1721233838485,-36603.9080659,0.00013333,2]
[332481424,1721233838512,-425.07701483,0.00013333,2]
[332481426,1721233838525,-697.22222227,0.00013333,2]
[332481510,1721233840467,-1445.17336344,0.00013333,2]
[332481511,1721233840591,-63885.17870503,0.00013333,2]
[332481577,1721233842803,-10120.57200002,0.00013333,2]
[332481579,1721233842871,-720587.55839678,0.00013333,2]
[332481580,1721233842881,-155.30247153,0.00013333,2]
[332481581,1721233842890,-166.12263133,0.00013333,2]
[332481582,1721233842900,-306.77520727,0.00013333,2]
[332481583,1721233842910,-1104.0,0.000134,5]
[332481584,1721233842919,-155.0,0.00013579,2]
[332481585,1721233842929,-28685.18313975,0.0001358,2]
[332481586,1721233842939,-175.95,0.00013584,2]
[332481587,1721233842948,-152.3647633,0.0001384,2]
[332481588,1721233842958,-182.25416916,0.00013922,2]
[332481589,1721233842967,-1081.18,0.00013993,2]
[332481590,1721233842979,-250.0,0.00013994,2]
[332481591,1721233842989,-602.50596227,0.00013999,2]
[332481592,1721233842998,-597.40870787,0.00013999,2]
[332481593,1721233843007,-419.20805936,0.00013999,2]
[332481594,1721233843017,-483.3927836,0.00013999,2]
[332481595,1721233843026,-788693.85409385,0.00014,2]
[332481596,1721233843037,-1291.29,0.00014,2]
[332481597,1721233843048,-2580.675816,0.00014,2]
[332481598,1721233843433,-5733.33176591,0.00014,2]
[332481601,1721233844108,-15495.31440151,0.00014,2]
[332481603,1721233844120,-2046.12957927,0.00014,2]
[332481605,1721233844132,-30050.28058075,0.00014,2]
[332481607,1721233844143,-12195.496,0.00014,2]
[332481667,1721233845862,-4660.92624026,0.00014,2]
[332481697,1721233846037,-277.7,0.00014,2]
[332481709,1721233846102,-10775.17408653,0.00014,2]
[332481729,1721233846225,-700.60233236,0.00014,2]
[332481732,1721233846237,-4896.8570481,0.00014,2]
[332481735,1721233846248,-817.32850703,0.00014,2]
[332481782,1721233978712,250.0,0.00011981,2]
[332481783,1721233991781,565.454886,0.00024999,120]
[332481784,1721234147688,-259.37,0.00018849,30]
[332481785,1721234175191,167.47,0.00010772,2]
[332481786,1721234176223,27.54244804,0.0001198,2]
[332481787,1721234176245,20000.0,0.0001198,2]
[332481790,1721234642371,237.75,0.00018849,30]
[332481796,1721234981953,771.09,0.00010619,2]
[332481813,1721235032015,-439.21770875,0.00011191,2]
[332481814,1721235032024,-1500.0,0.00011196,2]
[332481815,1721235032034,-213.12696375,0.00011197,2]
[332481816,1721235032046,-465.87303625,0.00011197,2]
[332481817,1721235032055,-79.27754578,0.00011976,2]
[332481818,1721235032067,-5631.02505531,0.00011976,2]
[332481819,1721235032078,-2327.15821998,0.00011976,2]
[332481820,1721235032088,-560.74229104,0.00011981,2]
[332481821,1721235032097,-3533.89948898,0.00011981,2]
[332481822,1721235032114,-643.411254,0.00011981,2]
[332481823,1721235032127,-550.91767056,0.00011981,2]
[332481824,1721235032212,-13706.04544292,0.00011981,2]
[332481825,1721235032223,-313.57105066,0.00011981,2]
[332481826,1721235032235,-438.02380083,0.00011981,2]
[332481827,1721235032246,-1296.98145847,0.00011981,2]
[332481828,1721235032263,-3417.14983358,0.00011981,2]
[332481830,1721235032272,-150.0,0.00012384,2]
[332481832,1721235032282,-700.0,0.00012424,2]
[332481834,1721235032291,-1842.22,0.00012555,2]
[332481837,1721235032300,-150.0,0.00012567,2]
[332481839,1721235032310,-3721.17,0.000126,2]
[332481841,1721235032319,-208.68,0.000126,2]
[332481843,1721235032328,-218.0,0.00012795,2]
[332481845,1721235032338,-296.92,0.00012795,2]
[332481847,1721235032347,-771.09,0.00012883,2]
[332481849,1721235032357,-250.0,0.00012903,2]
[332481851,1721235032366,-550.0,0.00013,2]
[332481852,1721235032375,-250.0,0.0001301,2]
[332481854,1721235032385,-157.37127731,0.00013147,2]
[332481856,1721235032394,-367.07162065,0.00013245,2]
[332481858,1721235032403,-700.0,0.00013246,2]
[332481859,1721235032413,-859.49,0.00013368,2]
[332481860,1721235032422,-264.02,0.00013699,2]
[332481861,1721235032431,-250.0,0.00013699,2]
[332481862,1721235032442,-300.0,0.000137,5]
[332481863,1721235032451,-150.0,0.000137,2]
[332481864,1721235032461,-600.0,0.000138,5]
[332481865,1721235032470,-15835.0,0.0001386,2]
[332481866,1721235032481,-222.85,0.0001389,3]
[332481867,1721235032490,-1136.70475368,0.00013899,2]
[332481868,1721235032499,-155.0,0.00013899,2]
[332481869,1721235032511,-5666.0309,0.000139,2]
[332481870,1721235032521,-9049.4292,0.000139,2]
[332481871,1721235032530,-568.0812119,0.000139,2]
[332481872,1721235032540,-900.0,0.000139,5]
[332481873,1721235032549,-2856.108,0.000139,2]
[332481874,1721235032558,-317.84350608,0.000139,2]
[332481875,1721235032568,-880.15797274,0.000139,2]
[332481876,1721235032578,-158.66972103,0.00013942,2]
[332481877,1721235032587,-185.14617473,0.00013942,2]
[332481878,1721235032596,-663.65911171,0.00013942,2]
[332481879,1721235032605,-1000.0,0.00013973,5]
[332481880,1721235032615,-546.16417229,0.00013989,2]
[332481881,1721235032624,-346.55000004,0.0001399,2]
[332481882,1721235032634,-778.02154041,0.00013999,5]
[332481883,1721235032643,-155.0,0.00013999,2]
[332481884,1721235032652,-279.80739725,0.00013999,2]
[332481885,1721235032662,-21291.02971935,0.00014,2]
[332481886,1721235032674,-64237.93525219,0.00014,2]
[332481887,1721235032689,-3834.18185265,0.00014,2]
[332481888,1721235032701,-3851.0,0.00014,2]
[332481907,1721235037933,-156.7202086,0.00013997,2]
[332481908,1721235037942,-326.9397914,0.00014,2]
[332481910,1721235037955,-68516.91120781,0.00014,2]
[332481911,1721235038049,-1604.44102293,0.00014,2]
[332481912,1721235038061,-18547.3192137,0.00014,2]
[332481913,1721235038331,-5372.37762678,0.00014,2]
[332481914,1721235038344,-640.64,0.00014,2]
[332481915,1721235038358,-310.24010705,0.00014,2]
[332481916,1721235038517,-17566.6419341,0.00014,2]
[332481919,1721235038531,-9553.154996,0.00014,2]
[332481921,1721235038542,-9084.2900005,0.00014,2]
[332481924,1721235038562,-13724.235,0.00014,2]
[332481926,1721235038579,-1384.75,0.00014,2]
[332481928,1721235038592,-5915.5,0.00014,2]
[332481930,1721235038606,-425.55,0.00014,2]
[332481933,1721235038618,-338.49957706,0.00014,2]
[332481935,1721235038631,-428.61941707,0.00014,2]
[332481937,1721235038643,-1552.0,0.00014,2]
[332481999,1721235040177,-12814.6,0.00014,2]
[332482000,1721235040188,-415.87000001,0.00014,2]
[332482001,1721235040200,-469.26882658,0.00014,2]
[332482002,1721235040211,-63828.8235986,0.00014,2]
[332482003,1721235040222,-584.47445918,0.00014,2]
[332482004,1721235040237,-219203.46244095,0.00014,2]